bitfinex/quotes_SOLUSD_20241010
["timestamp","ask_amount","ask_price","bid_price","bid_amount"]
[1728576396477,7.1937,139.01,138.97,25.1848]
[1728576397380,7.1928,139.03,138.99,7.1944]
[1728576398279,7.1924,139.04,139.0,7.1938]
[1728576398477,7.1907,139.07,139.03,7.1925]
[1728576398653,34.3627,139.1,139.04,1.4383163]
[1728576398654,16.389,139.1,139.04,1.4383163]
[1728576398853,7.1896,139.09,139.05,25.1704]
[1728576399379,7.1901,139.08,139.05,17.9789]
[1728576400577,7.1897,139.09,139.05,26.6086]
[1728576400882,0.851224,139.13,139.05,35.5306]
[1728576401086,7.1892,139.1,139.06,7.1909]
[1728576401250,7.1885,139.12,139.05,34.0924]
[1728576401456,7.1885,139.12,139.07,7.1905]
[1728576401758,7.1889,139.11,139.06,7.1907]
[1728576402353,7.1889,139.11,139.07,1.43792839]
[1728576402552,7.1889,139.11,139.06,7.1907]
[1728576403268,24.027864,139.12,139.05,34.0924]
[1728576403582,7.1902,139.08,139.05,34.0924]
[1728576404987,41.998264,139.12,139.05,41.284]
[1728576404988,7.1897,139.09,139.05,41.284]
[1728576407680,41.998264,139.12,139.06,8.62920352]
[1728576407681,7.1891,139.1,139.06,8.62920352]
[1728576407858,7.1889,139.11,139.07,7.1904]
[1728576408365,7.1889,139.11,139.07,8.62827762]
[1728576408566,7.1889,139.11,139.07,7.1904]
[1728576410686,7.1889,139.11,139.05,34.0924]
[1728576410687,0.851224,139.13,139.06,1.43789889]
[1728576410871,7.1892,139.1,139.06,8.62903393]
[1728576411778,7.1887,139.11,139.07,8.62853484]
[1728576412084,7.1887,139.11,139.07,7.1905]
[1728576412480,7.1887,139.11,139.07,8.62839902]
[1728576413389,18.820324,139.13,139.09,17.9737]
[1728576413390,0.851224,139.13,139.09,17.9737]
[1728576413561,0.851224,139.13,139.07,7.1902]
[1728576413562,7.1885,139.11,139.07,7.1902]
[1728576413761,0.851224,139.13,139.06,24.3198]
[1728576414384,7.1899,139.09,139.06,24.3198]
[1728576414589,7.1892,139.1,139.06,31.5108]
[1728576416582,7.1902,139.08,139.05,16.1135]
[1728576416984,7.1897,139.09,139.05,23.305]
[1728576417565,7.1892,139.1,139.06,7.191]
[1728576417868,7.1892,139.1,139.06,8.62899144]
[1728576418183,7.1892,139.1,139.06,7.191]
[1728576419190,17.973,139.1,139.05,16.1135]
[1728576419387,23.776884,139.12,139.05,16.1135]
[1728576419689,7.1891,139.1,139.07,7.1905]
[1728576419865,7.1891,139.1,139.06,26.6064161]
[1728576420364,18.821124,139.13,139.06,19.4156161]
[1728576420571,8.039024,139.13,139.09,7.1892]
[1728576420775,8.039024,139.13,139.08,17.9747]
[1728576420776,7.1885,139.11,139.08,17.9747]
[1728576421188,0.851224,139.13,139.08,17.9747]
[1728576421394,0.851224,139.13,139.07,7.1902]
[1728576421692,0.851224,139.13,139.06,7.1909]
[1728576421693,7.1891,139.1,139.06,7.1909]
[1728576422093,7.1891,139.1,139.05,70.0497]
[1728576422094,7.1887,139.11,139.07,7.1905]
[1728576422495,0.851224,139.13,139.08,8.62793645]
[1728576422496,7.1884,139.12,139.08,8.62793645]
[1728576422695,7.1884,139.12,139.08,7.19]
[1728576423590,7.1881,139.12,139.08,7.1897]
[1728576423886,0.851224,139.13,139.07,17.9762]
[1728576424097,8.038724,139.13,139.09,8.62694377]
[1728576425288,7.188,139.12,139.09,7.1892]
[1728576426472,0.851224,139.13,139.1,8.62661878]
[1728576426780,0.851224,139.13,139.12,7.188]
[1728576426982,0.851224,139.13,139.12,8.62540622]
[1728576427180,0.851224,139.13,139.12,7.188]
[1728576427798,0.851224,139.13,139.11,41.2787]
[1728576428021,0.851224,139.13,139.11,16.1193]
[1728576428299,8.038824,139.13,139.09,13.7352]
[1728576428809,0.851224,139.13,139.09,6.5458]
[1728576429095,8.038824,139.13,139.09,13.7349]
[1728576429407,0.851224,139.13,139.09,13.7349]
[1728576429696,0.851224,139.13,139.1,19.40955605]
[1728576429900,0.851224,139.13,139.1,17.972]
[1728576430088,0.851224,139.13,139.11,7.1884]
[1728576431280,8.039124,139.13,139.09,15.17254324]
[1728576432306,0.851224,139.13,139.1,7.189]
[1728576432796,0.851224,139.13,139.09,1.43744324]
[1728576433013,7.1906,139.07,139.02,7.1928]
[1728576433195,7.1906,139.07,139.02,25.1747]
[1728576433579,7.1906,139.07,139.03,8.63081701]
[1728576434592,17.973,139.1,139.03,1.43821701]
[1728576434809,7.1902,139.08,139.04,7.1921]
[1728576434998,7.1902,139.08,139.03,7.1925]
[1728576435404,7.1902,139.08,139.02,17.9819]
[1728576435590,7.1902,139.08,139.04,7.1921]
[1728576436919,7.19,139.09,139.05,1.43810148]
[1728576437092,7.19,139.09,139.05,7.1916]
[1728576437293,7.19,139.09,139.04,7.1918]
[1728576437809,7.1902,139.08,139.04,7.1918]
[1728576438913,24.027864,139.05,138.93,22.9477]
[1728576439112,7.1945,139.0,138.96,25.1857]
[1728576439424,7.1951,138.99,138.94,12.44078406]
[1728576439794,7.1951,138.99,138.94,12.44048406]
[1728576440121,7.1951,138.99,138.95,7.1966]
[1728576440415,7.1943,139.0,138.96,7.1963]
[1728576440922,7.1943,139.0,138.95,7.1967]
[1728576441296,7.1948,138.99,138.95,7.1967]
[1728576441494,7.1948,138.99,138.94,12.44068406]
[1728576443092,7.1948,138.99,138.95,7.1967]
[1728576443296,24.027864,139.05,138.94,5.24358406]
[1728576443499,7.1967,138.96,138.91,5.24358406]
[1728576444118,24.027864,139.01,138.91,5.24358406]
[1728576444420,7.1959,138.97,138.92,7.1983]
[1728576445903,7.1954,138.98,138.93,1.4393347]
[1728576446108,7.1954,138.98,138.94,7.1973]
[1728576446415,24.027864,139.02,138.92,17.9955]
[1728576446612,7.1951,138.99,138.94,7.1969]
[1728576446999,24.027864,139.02,138.94,7.1969]
[1728576447193,7.1948,138.99,138.94,7.1969]
[1728576447400,7.1948,138.99,138.95,1.43914501]
[1728576448108,7.1948,138.99,138.94,7.1969]
[1728576448316,7.1948,138.99,138.92,17.9955]
[1728576448499,7.1953,138.98,138.94,7.1971]
[1728576453899,7.1953,138.98,138.91,24.027864]
[1728576454099,7.1953,138.98,138.95,7.1968]
[1728576454423,7.1944,139.0,138.96,8.63533057]
[1728576454809,7.1947,138.99,138.96,8.63533057]
[1728576455216,7.1947,138.99,138.95,7.1966]
[1728576455812,7.1954,138.98,138.94,25.1901]
[1728576456917,7.1958,138.97,138.94,25.1901]
[1728576458625,7.1964,138.96,138.92,7.1981]
[1728576458808,7.1963,138.96,138.92,7.1982]
[1728576459411,7.1963,138.96,138.93,7.1978]
[1728576460028,7.1959,138.97,138.93,7.1978]
[1728576460408,7.1971,138.95,138.91,25.1948]
[1728576460613,15.3834,139.0,138.82,1.25314022]
[1728576460614,0.25098,138.96,138.88,18.0002]
[1728576460811,7.1985,138.92,138.88,25.2003]
[1728576461207,18.24178,138.96,138.88,25.2003]
[1728576461411,7.1995,138.9,138.87,23.0068]
[1728576461724,7.1995,138.9,138.87,7.2009]
[1728576462040,7.1991,138.91,138.87,7.2009]
[1728576463722,7.1994,138.9,138.86,7.2014]
[1728576463915,7.1999,138.89,138.85,25.2056]
[1728576464128,7.1998,138.9,138.86,7.2014]
[1728576464514,24.027864,138.93,138.85,18.0038]
[1728576464722,7.1999,138.89,138.85,25.2054]
[1728576465533,7.1995,138.9,138.86,7.2014]
[1728576466437,33.5431,138.94,138.85,18.0038]
[1728576466612,7.1992,138.91,138.87,7.2008]
[1728576467030,7.1998,138.9,138.86,7.2014]
[1728576467439,23.902374,138.93,138.86,7.2014]
[1728576467730,7.2005,138.88,138.85,18.0038]
[1728576467937,7.2005,138.88,138.85,25.2058]
[1728576468122,7.2,138.89,138.85,25.2058]
[1728576468914,7.2,138.89,138.86,1.44017578]
[1728576469225,7.2,138.89,138.85,26.64594341]
[1728576470535,7.2,138.89,138.85,25.2058]
[1728576470926,7.2005,138.88,138.85,18.0038]
[1728576471521,7.2005,138.88,138.84,7.2022]
[1728576471935,7.2005,138.88,138.85,1.44021418]
[1728576472235,0.12549,138.93,138.86,7.2014]
[1728576472438,15.5497,138.94,138.86,7.2014]
[1728576472439,7.1992,138.91,138.87,7.2009]
[1728576473031,7.2002,138.89,138.86,18.0037]
[1728576473247,7.2002,138.89,138.86,19.44390104]
[1728576473443,7.2002,138.89,138.86,26.64530104]
[1728576474731,17.9948,138.93,138.86,25.2051]
[1728576474934,7.1995,138.9,138.86,25.2051]
[1728576475136,23.902374,138.92,138.85,7.2018]
[1728576475447,7.1997,138.9,138.86,8.64156519]
[1728576475841,7.1997,138.9,138.86,7.2014]
[1728576477639,23.902374,138.92,138.86,7.2014]
[1728576477640,7.1999,138.89,138.86,7.2014]
[1728576477831,7.1999,138.89,138.85,25.2066]
[1728576478246,7.1999,138.89,138.86,1.44008815]
[1728576478621,7.1996,138.9,138.86,8.64148815]
[1728576479020,7.1996,138.9,138.86,7.2014]
[1728576480243,23.776884,138.92,138.85,25.2066]
[1728576480647,23.776884,138.92,138.86,1.44009231]
[1728576480831,7.1986,138.92,138.88,7.2002]
[1728576481142,23.902374,138.93,138.88,8.64013398]
[1728576481349,7.1989,138.91,138.87,25.2029]
[1728576482066,7.1994,138.9,138.87,18.0022]
[1728576482426,7.2,138.89,138.86,7.2012]
[1728576482826,7.2,138.89,138.85,25.2068]
[1728576483329,7.201,138.87,138.83,47.8563]
[1728576483544,7.2004,138.88,138.84,8.6426136]
[1728576483753,0.25098,138.91,138.84,8.6426136]
[1728576483754,24.027864,138.91,138.84,1.4403136]
[1728576484133,24.027864,138.91,138.83,40.6534]
[1728576484346,7.2008,138.88,138.84,7.2023]
[1728576484748,24.027864,138.91,138.72,84.78695318]
[1728576484749,24.027864,138.89,138.8,18.0106]
[1728576484931,24.027864,138.89,138.81,7.2037]
[1728576484932,7.202,138.85,138.81,7.2037]
[1728576485131,7.2032,138.83,138.8,18.0106]
[1728576485650,7.2038,138.82,138.79,22.7665]
[1728576486231,7.2041,138.81,138.77,25.2205]
[1728576487332,7.2048,138.8,138.76,22.617]
[1728576487840,18.13229,138.84,138.77,18.0152]
[1728576487841,23.776884,138.83,138.77,18.0152]
[1728576488031,7.204,138.82,138.77,25.2212]
[1728576488227,7.2031,138.83,138.77,18.0152]
[1728576488562,7.2031,138.83,138.78,1.44098107]
[1728576489436,7.2031,138.83,138.79,7.205]
[1728576489829,41.905574,138.87,138.77,18.0152]
[1728576490034,0.12549,138.86,138.78,7.2052]
[1728576490249,7.2031,138.83,138.78,7.2052]
[1728576490449,7.2031,138.83,138.77,18.0152]
[1728576490639,7.2041,138.81,138.77,18.0152]
[1728576490845,7.2041,138.81,138.77,25.2213]
[1728576491041,7.2047,138.8,138.77,18.0152]
[1728576491538,24.027864,138.82,138.74,18.0183]
[1728576492051,24.027864,138.82,138.73,21.6637]
[1728576492052,7.2062,138.77,138.73,21.6637]
[1728576492351,7.2066,138.77,138.73,23.10504699]
[1728576492553,7.2059,138.78,138.74,7.2073]
[1728576492739,7.2059,138.78,138.74,8.6485466]
[1728576493145,7.2058,138.78,138.74,7.2075]
[1728576494051,24.027864,138.8,138.73,39.6837]
[1728576494446,7.207,138.76,138.72,7.2085]
[1728576494646,24.027864,138.8,138.71,7.2091]
[1728576494647,7.2074,138.75,138.71,7.2091]
[1728576494854,24.027864,138.78,138.7,24.2671]
[1728576495356,7.2073,138.75,138.71,7.2088]
[1728576496133,0.12549,138.81,138.72,1.44147912]
[1728576496339,0.12549,138.81,138.76,18.016]
[1728576496537,7.2051,138.79,138.76,18.016]
[1728576496734,18.13599,138.81,138.73,18.0197]
[1728576496935,7.2062,138.77,138.73,7.2082]
[1728576497148,7.2057,138.78,138.74,8.64901507]
[1728576497351,7.2057,138.78,138.74,7.2076]
[1728576497554,23.902374,138.8,138.72,18.0212]
[1728576497770,0.12549,138.79,138.72,25.2295]
[1728576498264,7.2071,138.76,138.72,18.0212]
[1728576498561,18.13849,138.79,138.72,18.0212]
[1728576498562,23.902374,138.78,138.72,18.0212]
[1728576498753,0.12549,138.77,138.7,7.2096]
[1728576498944,0.12549,138.77,138.69,34.3345]
[1728576499144,7.2073,138.75,138.71,7.2092]
[1728576499762,0.12549,138.77,138.71,18.0228]
[1728576499957,0.12549,138.77,138.69,16.3097]
[1728576500263,7.2083,138.73,138.69,23.5198]
[1728576500558,7.2078,138.74,138.7,8.65111005]
[1728576501064,7.2078,138.74,138.7,7.2094]
[1728576501643,18.14129,138.77,138.69,16.3097]
[1728576501846,7.2087,138.72,138.68,25.2368]
[1728576502042,18.0185,138.75,138.68,18.0265]
[1728576502335,15.7399,138.76,138.65,17.004324]
[1728576502336,0.12549,138.72,138.65,35.034524]
[1728576502553,7.2107,138.69,138.65,35.034524]
[1728576502861,0.12549,138.72,138.65,35.034524]
[1728576503162,7.21,138.7,138.66,7.2118]
[1728576503552,7.2093,138.71,138.67,7.2113]
[1728576503766,7.2093,138.71,138.65,35.034524]
[1728576503950,7.21,138.7,138.66,7.2117]
[1728576504466,18.0209,138.73,138.65,42.246724]
[1728576504662,7.2103,138.69,138.65,42.246724]
[1728576504865,18.0209,138.73,138.65,42.246724]
[1728576505055,24.027864,138.72,138.65,42.246724]
[1728576505241,7.2104,138.69,138.65,42.246724]
[1728576505441,7.2099,138.7,138.65,42.246724]
[1728576505744,7.2099,138.7,138.66,7.2117]
[1728576506060,24.027864,138.75,138.67,19.46996624]
[1728576506262,33.7575,138.76,138.67,1.44206624]
[1728576506558,7.2087,138.72,138.69,18.0254]
[1728576507142,7.2096,138.71,138.67,7.2113]
[1728576507458,33.7575,138.76,138.66,18.0295]
[1728576507459,7.2098,138.7,138.66,25.241]
[1728576509364,7.2103,138.69,138.66,18.0295]
[1728576509660,7.2099,138.7,138.66,25.2413]
[1728576509870,24.027864,138.73,138.66,18.0295]
[1728576510048,7.2101,138.7,138.66,18.0295]
[1728576510659,24.027864,138.73,138.65,0.851224]
[1728576510851,18.0222,138.72,138.65,0.851224]
[1728576511049,24.027864,138.71,138.65,0.851224]
[1728576511244,7.2118,138.67,138.65,0.851224]
[1728576511445,7.2118,138.66,138.65,0.851224]
[1728576512146,31.239664,138.66,138.65,0.851224]
[1728576512567,7.2145,138.61,138.57,18.0406]
[1728576512745,42.058664,138.66,138.56,15.5246]
[1728576512746,24.027864,138.65,138.56,15.5246]
[1728576512947,7.2153,138.6,138.56,15.5246]
[1728576513162,7.2157,138.59,138.56,15.5246]
[1728576513473,7.2157,138.59,138.55,6.4222]
[1728576513858,24.027864,138.63,138.56,19.48546313]
[1728576514051,7.2148,138.61,138.56,25.2591]
[1728576515044,7.2148,138.61,138.55,6.4222]
[1728576515045,7.2161,138.58,138.55,6.4222]
[1728576515248,7.2159,138.59,138.55,13.6396]
[1728576515448,24.027864,138.61,138.54,18.0449]
[1728576515953,7.2156,138.59,138.55,1.44343842]
[1728576516152,6.1018,138.64,138.53,16.1805]
[1728576516361,0.12549,138.63,138.57,7.2161]
[1728576516558,7.2152,138.6,138.56,18.0417]
[1728576516765,7.2148,138.61,138.56,24.7584]
[1728576516946,0.12549,138.63,138.56,17.5417]
[1728576517249,7.2146,138.61,138.57,7.2161]
[1728576517662,7.2146,138.61,138.53,34.2263]
[1728576517663,0.12549,138.61,138.53,34.2263]
[1728576517866,7.2156,138.59,138.55,7.2175]
[1728576518072,7.2156,138.59,138.54,7.2179]
[1728576518458,7.2166,138.57,138.53,41.4447]
[1728576518778,7.2166,138.57,138.53,25.2642]
[1728576519163,7.2162,138.58,138.53,25.2642]
[1728576519566,0.12549,138.61,138.53,25.2642]
[1728576519764,7.2161,138.58,138.54,7.2179]
[1728576520755,7.2156,138.59,138.55,7.2176]
[1728576521065,7.2154,138.6,138.55,25.2604]
[1728576521463,7.2154,138.6,138.56,7.2169]
[1728576521863,7.2145,138.61,138.57,7.2162]
[1728576522856,16.486,138.66,138.55,15.9257]
[1728576523066,7.212,138.66,138.62,7.2139]
[1728576523275,7.2117,138.67,138.63,7.2134]
[1728576523690,7.211,138.68,138.64,7.2127]
[1728576524175,7.2115,138.67,138.63,25.2463]
[1728576524375,18.0255,138.7,138.63,18.0331]
[1728576524684,7.2112,138.68,138.63,25.2464]
[1728576525175,7.2112,138.68,138.63,18.0331]
[1728576525381,7.2112,138.68,138.64,7.2128]
[1728576525682,7.2118,138.67,138.63,18.0331]
[1728576526360,7.2118,138.67,138.63,25.2465]
[1728576527280,7.211,138.68,138.63,25.2465]
[1728576527670,7.211,138.68,138.64,7.2129]
[1728576527980,10.6104,138.69,138.63,18.0331]
[1728576528282,3.4,138.69,138.63,18.0331]
[1728576528485,7.212,138.66,138.63,18.0331]
[1728576528660,23.776884,138.68,138.61,15.6485]
[1728576528858,7.213,138.64,138.6,25.2521]
[1728576531176,7.213,138.64,138.6,18.0372]
[1728576531683,7.2134,138.63,138.6,18.0372]
[1728576532485,7.2136,138.63,138.58,7.2155]
[1728576532696,7.2144,138.62,138.57,39.7388]
[1728576532981,7.2162,138.58,138.54,7.2177]
[1728576533372,7.2162,138.58,138.53,21.7592]
[1728576533373,7.2165,138.57,138.53,47.0238]
[1728576533694,7.2179,138.55,138.51,8.070424]
[1728576533863,7.2172,138.56,138.51,0.851224]
[1728576534064,18.0392,138.59,138.52,18.0476]
[1728576534367,7.2171,138.56,138.52,25.2663]
[1728576534585,18.0392,138.59,138.52,18.0476]
[1728576534770,7.2166,138.57,138.53,7.2185]
[1728576535278,7.2176,138.55,138.51,8.070724]
[1728576535791,7.2169,138.57,138.52,7.2189]
[1728576535987,7.2171,138.56,138.52,7.2189]
[1728576536799,7.2174,138.56,138.51,26.119124]
[1728576536980,7.2182,138.54,138.51,18.899824]
[1728576537290,0.12549,138.58,138.51,0.851224]
[1728576537487,7.2188,138.53,138.51,0.851224]
[1728576537872,7.2191,138.52,138.51,0.851224]
[1728576538272,7.2187,138.53,138.51,0.851224]
[1728576538472,7.2182,138.54,138.51,0.851224]
[1728576538692,7.2171,138.56,138.52,7.2191]
[1728576538893,7.2166,138.57,138.53,7.2186]
[1728576539077,7.2161,138.58,138.54,7.2178]
[1728576540294,34.6778,138.63,138.55,1.44332823]
[1728576540476,7.2155,138.59,138.55,7.2174]
[1728576540872,34.6778,138.63,138.55,7.2174]
[1728576541068,7.2151,138.6,138.56,1.44322272]
[1728576541377,7.2151,138.6,138.55,7.2174]
[1728576541794,7.2156,138.59,138.55,7.2174]
[1728576542493,7.2156,138.59,138.54,25.2627]
[1728576543277,7.2156,138.59,138.55,7.2174]
[1728576543471,24.6076,138.66,138.56,19.48532839]
[1728576543777,15.9417,138.67,138.58,18.0394]
[1728576543991,7.2133,138.64,138.59,7.2153]
[1728576544179,7.2125,138.65,138.61,7.2141]
[1728576544379,21.4264,138.69,138.61,7.2141]
[1728576544380,7.2123,138.66,138.61,7.2141]
[1728576544582,7.2123,138.66,138.6,18.0365]
[1728576544583,21.4264,138.69,138.62,7.2135]
[1728576544800,7.2123,138.66,138.61,7.2143]
[1728576545099,21.4264,138.69,138.61,7.2143]
[1728576545401,7.2125,138.65,138.61,7.2143]
[1728576546072,0.25098,138.66,138.59,23.0595]
[1728576546272,7.2144,138.62,138.59,15.8442]
[1728576546489,7.2145,138.61,138.58,6.3003]
[1728576546905,24.027864,138.66,138.59,1.44294608]
[1728576547104,7.2124,138.65,138.61,7.2143]
[1728576547384,7.212,138.66,138.62,7.2139]
[1728576547581,7.212,138.66,138.63,1.44257009]
[1728576547782,7.2112,138.68,138.63,8.65557009]
[1728576547992,7.211,138.68,138.64,7.2127]
[1728576548187,3.4,138.69,138.65,1.44229226]
[1728576548394,3.4,138.69,138.66,7.2118]
[1728576548586,3.4,138.69,138.67,1.44208157]
[1728576548786,3.4,138.69,138.65,25.2428]
[1728576548787,10.6104,138.69,138.65,25.2428]
[1728576549301,3.4,138.69,138.66,1.44218411]
[1728576549604,3.4,138.69,138.66,8.65398411]
[1728576549784,3.4,138.69,138.65,18.0306]
[1728576549991,3.4,138.69,138.65,25.2429]
[1728576550307,3.4,138.69,138.66,8.65378074]
[1728576550508,3.4,138.69,138.66,1.44208074]
[1728576550724,3.4,138.69,138.67,7.2112]
[1728576550888,3.4,138.69,138.68,1.44198271]
[1728576551600,3.4,138.69,138.68,8.6527634]
[1728576551798,3.4,138.69,138.68,7.2108]
[1728576553516,3.4,138.69,138.67,25.2392]
[1728576553891,3.4,138.69,138.68,8.65264092]
[1728576554304,3.4,138.69,138.68,7.2108]
[1728576555194,3.4,138.69,138.68,8.65261769]
[1728576555596,3.4,138.69,138.68,7.2108]
[1728576556417,3.4,138.69,138.67,25.2393]
[1728576557217,3.4,138.69,138.68,8.65265141]
[1728576557595,3.4,138.69,138.68,7.2108]
[1728576557812,3.4,138.69,138.67,18.028]
[1728576558022,3.4,138.69,138.67,25.2392]
[1728576558898,3.4,138.69,138.67,18.028]
[1728576559095,3.4,138.69,138.66,13.7161]
[1728576559294,3.4,138.69,138.67,7.2112]
[1728576559514,3.4,138.69,138.66,31.7456]
[1728576559994,3.4,138.69,138.66,24.5339]
[1728576560193,3.4,138.69,138.66,6.5045]
[1728576560194,10.6107,138.69,138.66,6.5045]
[1728576560397,7.2108,138.68,138.64,7.2127]
[1728576560718,10.6105,138.69,138.64,7.2127]
[1728576561023,10.6105,138.69,138.63,39.928]
[1728576561024,3.4,138.69,138.63,21.8955]
[1728576561195,3.4,138.69,138.58,36.0792]
[1728576561196,6.63987015,138.65,138.61,7.2144]
[1728576561400,3.4,138.69,138.6,33.8292]
[1728576561401,7.2122,138.66,138.6,33.8292]
[1728576561613,7.2109,138.68,138.64,7.2128]
[1728576562207,3.4,138.69,138.66,7.2118]
[1728576562403,3.4,138.69,138.61,41.937374]
[1728576562714,3.4,138.69,138.63,18.0333]
[1728576563090,3.4,138.69,138.65,18.0307]
[1728576563305,3.4,138.69,138.66,1.44209452]
[1728576563502,3.4,138.69,138.65,18.0307]
[1728576563909,3.4,138.69,138.67,18.0282]
[1728576564114,3.4,138.69,138.68,7.2108]
[1728576566419,3.4,138.69,138.67,25.2393]
[1728576567420,10.6104,138.69,138.65,7.2122]
[1728576567721,3.4,138.69,138.66,7.2117]
[1728576568300,3.4,138.69,138.67,1.44201818]
[1728576568496,3.4,138.69,138.68,7.2108]
[1728576569620,3.4,138.69,138.67,16.2497]
[1728576569821,3.4,138.69,138.66,31.8057]
[1728576569992,10.6103,138.69,138.66,24.5942]
[1728576570194,10.6103,138.69,138.65,7.2122]
[1728576570524,3.4,138.69,138.64,16.4583]
[1728576570724,7.2112,138.68,138.64,23.6709]
[1728576571223,7.2112,138.68,138.64,7.2126]
[1728576571400,3.4,138.69,138.63,31.6531]
[1728576571401,7.2118,138.67,138.63,31.6531]
[1728576571598,7.2119,138.66,138.62,7.2137]
[1728576571902,3.4,138.69,138.63,7.2134]
[1728576571903,7.2115,138.67,138.63,7.2134]
[1728576572333,21.426,138.69,138.62,18.0347]
[1728576572616,7.2129,138.64,138.6,7.2148]
[1728576572921,18.0287,138.67,138.59,31.7517]
[1728576573229,7.2137,138.63,138.59,31.7517]
[1728576574399,7.2137,138.63,138.59,25.2527]
[1728576574601,7.2141,138.62,138.58,7.2159]
[1728576574826,7.2136,138.63,138.59,1.44284372]
[1728576575130,23.902374,138.66,138.59,1.44284517]
[1728576575310,23.902374,138.66,138.58,25.2557]
[1728576575512,7.2135,138.63,138.59,7.2153]
[1728576575824,7.2135,138.63,138.58,25.2557]
[1728576576222,7.214,138.62,138.58,26.69849441]
[1728576576524,7.2145,138.61,138.58,19.48259441]
[1728576576699,30.273874,138.66,138.58,19.48259441]
[1728576576899,7.2138,138.63,138.58,18.0398]
[1728576577135,0.12549,138.65,138.58,18.0398]
[1728576577419,7.2141,138.62,138.58,25.2557]
[1728576577824,7.2134,138.63,138.59,8.65825668]
[1728576578028,7.2134,138.63,138.59,7.2154]
[1728576579398,7.2134,138.63,138.59,8.65825115]
[1728576579601,0.12549,138.65,138.58,18.0398]
[1728576579816,7.2143,138.62,138.58,25.2556]
[1728576580644,7.2145,138.61,138.58,18.0398]
[1728576581724,7.2145,138.61,138.57,7.2165]
[1728576581922,30.273874,138.66,138.55,18.0431]
[1728576582128,7.2156,138.59,138.56,1.44325569]
[1728576582828,7.215,138.6,138.56,8.66015569]
[1728576583032,7.215,138.6,138.56,7.2169]
[1728576584734,7.2148,138.61,138.57,7.2165]
[1728576584916,7.2146,138.61,138.57,25.2575]
[1728576585809,0.12549,138.63,138.57,18.0411]
[1728576586126,7.2155,138.59,138.55,7.2172]
[1728576587530,7.2155,138.59,138.55,8.66046675]
[1728576587706,7.2146,138.61,138.57,7.2164]
[1728576589209,24.027864,138.65,138.57,7.2164]
[1728576589418,7.2154,138.6,138.56,25.2596]
[1728576591036,7.2155,138.59,138.56,25.2596]
[1728576591419,7.2155,138.59,138.56,18.0426]
[1728576591624,7.2162,138.58,138.54,16.2032]
[1728576591814,7.2162,138.58,138.54,23.421]
[1728576592215,7.2162,138.58,138.54,24.86432901]
[1728576592709,7.2162,138.58,138.54,23.421]
[1728576594131,7.2162,138.58,138.54,24.86435516]
[1728576594334,41.808984,138.65,138.55,18.044]
[1728576594541,41.808984,138.65,138.57,7.2164]
[1728576594542,7.2146,138.61,138.57,7.2164]
[1728576595018,7.215,138.6,138.57,7.2164]
[1728576595729,7.215,138.6,138.56,7.2168]
[1728576596536,18.0338,138.63,138.55,18.044]
[1728576596845,7.2158,138.59,138.55,18.044]
[1728576597050,7.2158,138.59,138.55,26.70465092]
[1728576597219,7.2152,138.6,138.56,8.65975277]
[1728576597418,7.2152,138.6,138.56,7.2165]
[1728576597928,7.2155,138.59,138.56,7.2165]
[1728576598329,7.2163,138.58,138.55,18.044]
[1728576599539,7.2163,138.58,138.54,7.2179]
[1728576599851,18.0363,138.61,138.52,24.2672]